[Event "55th Ladies GM 2024"]
[Site "Belgrade9"]
[Date "2024.03.08"]
[Round "7.5"]
[White "Djukic, Sandra"]
[Black "Doluhanova, Evgeniya"]
[Result "0-1"]
[ECO "E17"]
[WhiteElo "2127"]
[BlackElo "2261"]
[Annotator "RC"]
[PlyCount "122"]
[EventDate "2024.03.02"]
[EventType "tourn"]
[EventCountry "SRB"]
[SourceTitle "playchess.com"]
[Source "ChessBase"]
[SourceQuality "1"]
[TimeControl "40/5400+30:1800+30"]

1. d4 {[%emt 0:00:04]} Nf6 {[%emt 0:00:13]} 2. c4 {[%emt 0:00:02]} e6 {[%emt 0:00:04]} 3. Nf3 {[%emt 0:00:07]} b6 {[%emt 0:00:03]} 4. g3 {[%emt 0:00:06]} Bb7 {[%emt 0:00:04]} 5. Bg2 {[%emt 0:00:06]} Be7 {[%emt 0:00:03]} 6. O-O {[%emt 0:00:07]} O-O {[%emt 0:00:04]} 7. Re1 {[%emt 0:01:04]} d5 {[%emt 0:01:37]} 8. cxd5 {[%emt 0:00:09]} exd5 {[%emt 0:00:08]} 9. Nc3 {[%emt 0:00:05]} c5 {[%emt 0:01:08]} 10. Bf4 {[%emt 0:02:20]} Nc6 {[%emt 0:02:24]} 11. dxc5 {[%emt 0:05:40]} Bxc5 {[%emt 0:04:18]} 12. e3 {[%emt 0:02:41]} h6 {[%emt 0:01:36]} 13. Nd4 {[%emt 0:01:39]} Re8 {[%emt 0:04:24]} 14. Nxc6 {[%emt 0:06:48]} Bxc6 {[%emt 0:00:07]} 15. g4 {[%emt 0:17:15]} Qd7 {[%emt 0:11:11]} 16. Rf1 {[%emt 0:45:25]} g5 {[%emt 0:05:03]} 17. Bg3 {[%emt 0:01:03]} Rad8 {[%emt 0:00:28]} 18. b4 {[%emt 0:02:54]} Bxb4 {[%emt 0:01:11]} 19. Qd4 {[%emt 0:00:04]} Qe7 {[%emt 0:06:03]} 20. h3 {[%emt 0:07:00]} Bc5 {[%emt 0:00:58]} 21. Qd3 {[%emt 0:00:52]} Ne4 {[%emt 0:04:13]} 22. Nxe4 {[%emt 0:01:22]} dxe4 {[%emt 0:00:05]} 23. Qc2 {[%emt 0:01:11]} Bb5 {[%emt 0:10:27]} 24. Rfd1 {[%emt 0:00:05]} Bd3 {[%emt 0:00:10]} 25. Qb3 {[%emt 0:03:04]} a5 {[%emt 0:00:21]} 26. a4 {[%emt 0:01:31]} Rd7 {[%emt 0:03:04]} 27. Rdc1 {[%emt 0:00:28]} Red8 {[%emt 0:01:06]} 28. Rc3 {[%emt 0:00:40]} Ba6 {[%emt 0:01:32]} 29. Rac1 {[%emt 0:00:24]} Rd2 {[%emt 0:01:19]} 30. Kh2 {[%emt 0:00:40]} Bb7 {[%emt 0:01:45]} 31. Rxc5 {[%emt 0:00:24]} bxc5 {[%emt 0:00:42]} 32. Qb6 {[%emt 0:00:05]} Rc8 {[%emt 0:02:26]} 33. Qxa5 {[%emt 0:00:45]} Rd3 {[%emt 0:06:14]} 34. Qb5 {[%emt 0:00:45]} Bd5 {[%emt 0:01:56]} 35. a5 {[%emt 0:00:33]} Rb3 {[%emt 0:00:41]} 36. Qa6 {[%emt 0:00:03]} Qe6 {[%emt 0:01:48]} 37. Qe2 {[%emt 0:00:42]} c4 {[%emt 0:00:33]} 38. Bf1 {[%emt 0:00:43]} Ra3 {[%emt 0:05:20]} 39. Qb2 {[%emt 0:00:32]} Rxa5 {[%emt 0:00:31]} 40. Qc3 {[%emt 0:00:28]} Rb5 {[%emt 0:01:31]} 41. Be5 {[%emt 0:02:32]} f6 {[%emt 0:11:52]} 42. Bd4 {[%emt 0:02:05]} Kg7 {[%emt 0:04:19]} 43. Kg1 {[%emt 0:03:35]} Qd6 {[%emt 0:03:56]} 44. Be2 {[%emt 0:02:42]} Rb3 {[%emt 0:06:01]} 45. Qd2 {[%emt 0:02:59]} Kg6 {[%emt 0:01:17]} 46. Bc3 {[%emt 0:00:32]} Rd8 {[%emt 0:03:12]} 47. Rd1 {[%emt 0:10:47]} Rd7 {[%emt 0:00:50]} 48. Qc2 {[%emt 0:04:14]} Qc6 {[%emt 0:07:21]} 49. Rd4 {[%emt 0:04:47]} Be6 {[%emt 0:01:01]} 50. Rxd7 {[%emt 0:00:40]} Bxd7 {[%emt 0:00:13]} 51. Qd2 {[%emt 0:00:08]} Be6 {[%emt 0:02:54]} 52. Qd4 {[%emt 0:00:05]} Bd5 {[%emt 0:00:27]} 53. Bd1 {[%emt 0:00:18]} Rb7 {[%emt 0:09:05]} 54. Bc2 {[%emt 0:01:11]} Kg7 {[%emt 0:00:15]} 55. f3 {[%emt 0:00:48]} exf3 {[%emt 0:04:05]} 56. e4 {[%emt 0:00:01]} Bf7 {[%emt 0:00:16]} 57. e5 {[%emt 0:00:51]} Qb6 {[%emt 0:00:48]} 58. exf6+ {[%emt 0:00:02]} Kg8 {[%emt 0:00:06]} 59. Kf2 {[%emt 0:01:13]} Qxd4+ {[%emt 0:00:14]} 60. Bxd4 {[%emt 0:00:04]} Bd5 {[%emt 0:00:19]} 61. Bd1 {[%emt 0:00:31]} Kf7 {[%emt 0:00:29]} 0-1

[Event "55th Ladies GM 2024"]
[Site "Belgrade9"]
[Date "2024.03.09"]
[Round "8.1"]
[White "Pogorelskikh, Sofia"]
[Black "Doluhanova, Evgeniya"]
[Result "1/2-1/2"]
[ECO "C67"]
[WhiteElo "2214"]
[BlackElo "2261"]
[Annotator "TA"]
[PlyCount "81"]
[EventDate "2024.03.02"]
[EventType "tourn"]
[EventCountry "SRB"]
[SourceTitle "playchess.com"]
[Source "ChessBase"]
[SourceQuality "1"]
[TimeControl "40/5400+30:1800+30"]

{[%evp 9,81,19,18,0,0,0,0,-14,0,19,5,15,16,9,43,37,66,62,62,76,75,76,72,43,58,48,45,40,52,40,77,23,29,0,41,27,27,34,33,53,68,68,74,66,67,72,130,47,44,13,14,0,0,13,6,8,2,4,0,0,0,0,0,0,0,0,0,0,0,0,0,0,0,0]} 1. e4 {[%emt 0:00:06]} e5 {[%emt 0:00:02]} 2. Nf3 {[%emt 0:00:14]} Nc6 {[%emt 0:00:02]} 3. Bb5 {[%emt 0:00:20]} Nf6 {[%emt 0:00:07][%cal Bg8f6,Bf6e4,Be4d6][%mdl 32]} 4. O-O {[%emt 0:00:20][%cal Bh1f1,Bf1e1,Be1e4][%mdl 32]} Nxe4 {[%emt 0:00:03]} 5. Re1 {[%emt 0:00:37]} Nd6 {[%emt 0:00:04]} 6. a4 {[%emt 0:00:58]} Be7 {[%emt 0:01:40]} 7. Nc3 {[%emt 0:01:52]} O-O {[%emt 0:02:00]} 8. d4 {[%emt 0:01:02]} e4 {[%emt 0:03:08]} 9. Nxe4 {[%emt 0:01:16]} Nxe4 {[%emt 0:00:12]} 10. Rxe4 {[%emt 0:00:09]} d5 {[%emt 0:00:11]} 11. Re1 {[%emt 0:00:49]} Bd7 {[%emt 0:12:35]} 12. c3 {[%emt 0:24:14]} Re8 {[%emt 0:06:23]} 13. Bf4 {[%emt 0:04:04]} Bf6 {[%emt 0:06:32]} 14. Rxe8+ {[%emt 0:08:45]} Bxe8 {[%emt 0:00:30]} 15. Qc2 {[%emt 0:04:24]} Bd7 {[%emt 0:15:32]} 16. Re1 {[%emt 0:03:15] Weiß steht deutlich aktiver.} Ne7 {[%emt 0:05:51]} 17. Bd3 {[%emt 0:06:02]} Ng6 {[%emt 0:00:44]} 18. Bg3 {[%emt 0:01:14]} c6 {[%emt 0:09:40]} 19. Ne5 {[%emt 0:06:56]} Nf8 {[%emt 0:05:28]} 20. Nxd7 {[%emt 0:06:46]} (20. f4 $16) 20... Qxd7 $11 {[%emt 0:00:15]} 21. Bf5 {[%emt 0:02:07] Ein starkes Läuferpaar.} Qd8 {[%emt 0:00:19]} (21... Re8 $5 22. f4 (22. Bxd7 $2 Rxe1#) 22... Qd8 $11) 22. Qb3 $36 {[%emt 0:01:21][%mdl 2048] Weiss hat Initiative.} g6 {[%emt 0:02:00]} 23. Bh3 {[%emt 0:00:47]} Qb6 {[%emt 0:07:50]} 24. Qa3 {[%emt 0:03:15]} h5 {[%emt 0:06:34]} 25. a5 {[%emt 0:01:03]} Qb5 {[%emt 0:00:33]} 26. Bd6 {[%emt 0:03:41]} Nh7 {[%emt 0:02:18]} 27. g3 {[%emt 0:02:43] Und Bf1 würde nun gewinnen.} Qd3 {[%emt 0:01:13] [#]} ({Vorzuziehen ist} 27... b6) 28. Bf1 {[%emt 0:01:40]} (28. Qb4 $1 $16 {[%cal Rb4b7]} Ng5 29. Bg2 (29. Qxb7 $2 {verliert.} Nf3+ 30. Kh1 Rd8 $19)) 28... Qf5 $1 $14 {[%emt 0:00:32]} 29. Qb3 {[%emt 0:01:50]} Qd7 {[%emt 0:02:04] Die Stellung ist ausgeglichen.} 30. Bf4 {[%emt 0:02:10]} h4 {[%emt 0:04:58]} 31. Qd1 {[%emt 0:00:56]} hxg3 {[%emt 0:01:04]} 32. hxg3 {[%emt 0:01:09]} Ng5 {[%emt 0:00:37]} 33. Bg2 {[%emt 0:04:15]} Kg7 {[%emt 0:00:32]} 34. Be5 {[%emt 0:03:41]} Bxe5 {[%emt 0:02:02]} 35. Rxe5 {[%emt 0:00:01]} f6 {[%emt 0:00:28]} 36. Re1 {[%emt 0:00:10]} Re8 {[%emt 0:00:12]} 37. Rxe8 {[%emt 0:01:14]} Qxe8 {[%emt 0:00:05]} 38. Kf1 {[%emt 0:00:57]} Qd8 {[%emt 0:01:56]} 39. b4 {[%emt 0:00:48]} Qd7 {[%emt 0:00:33]} 40. Qd3 {[%emt 0:02:08]} a6 {[%emt 0:01:08]} 41. Ke1 {[%emt 0:09:03] Gewichteter Fehlerwert: Weiß=0.10 (sehr präzise) /Schwarz=0.07 (makellos) .  Fehler:       	Weiß=2     	Schwarz=1     Ungenau:       	Weiß=3     	Schwarz=5     OK:         	Weiß=17    	Schwarz=17    Stark:        	---       	Schwarz=1} 1/2-1/2

[Event "55th Ladies GM 2024"]
[Site "Belgrade9"]
[Date "2024.03.09"]
[Round "8.2"]
[White "Kulkarni Bhakti"]
[Black "Djukic, Sandra"]
[Result "1/2-1/2"]
[ECO "D27"]
[WhiteElo "2372"]
[BlackElo "2127"]
[Annotator "TA"]
[PlyCount "69"]
[EventDate "2024.03.02"]
[EventType "tourn"]
[EventCountry "SRB"]
[SourceTitle "playchess.com"]
[Source "ChessBase"]
[SourceQuality "1"]
[TimeControl "40/5400+30:1800+30"]

{[%evp 23,69,11,32,10,20,0,46,32,36,58,74,31,31,33,35,32,25,29,66,0,0,17,26,20,38,0,0,-5,0,0,0,0,0,0,0,0,0,0,0,0,0,0,8,-13,0,0,-1,-27]} 1. Nf3 {[%emt 0:00:14]} Nf6 {[%emt 0:00:34]} 2. c4 {[%emt 0:00:16]} e6 {[%emt 0:00:33]} 3. e3 {[%emt 0:00:28]} d5 {[%emt 0:01:22]} 4. Nc3 {[%emt 0:00:14]} dxc4 {[%emt 0:05:20]} 5. Bxc4 {[%emt 0:02:07]} a6 {[%emt 0:00:04]} 6. a4 {[%emt 0:11:29]} c5 {[%emt 0:00:40]} 7. d4 {[%emt 0:02:07]} Be7 {[%emt 0:00:06]} 8. O-O {[%emt 0:00:37]} Nc6 {[%emt 0:01:11]} 9. Qe2 {[%emt 0:03:55]} cxd4 {[%emt 0:04:28]} 10. Rd1 {[%emt 0:01:07]} O-O {[%emt 0:00:07]} 11. exd4 {[%emt 0:10:27]} Nb4 {[%emt 0:00:08]} 12. Bg5 {[%emt 0:00:27]} Nbd5 {[%emt 0:35:25]} 13. Rac1 {[%emt 0:02:25]} h6 {[%emt 0:13:45]} 14. Bh4 {[%emt 0:03:16]} Nxc3 {[%emt 0:09:43]} (14... Bd7 $11 {ist eher angebracht.}) 15. bxc3 $14 {[%emt 0:09:29] Weiß steht etwas besser.} Bd7 {[%emt 0:03:51]} 16. Bb3 {[%emt 0:01:33]} Qe8 {[%emt 0:12:58]} 17. Ra1 {[%emt 0:06:00] Weiß hat aktiveres Spiel.} Bc6 {[%emt 0:07:38]} 18. Ne5 {[%emt 0:00:15]} Nd5 {[%emt 0:00:26]} 19. Bxe7 {[%emt 0:02:05]} Qxe7 {[%emt 0:00:20]} 20. Bc2 {[%emt 0:11:31]} Qg5 {[%emt 0:01:15]} (20... Nxc3 $2 21. Qd3 Be4 22. Qxc3 $18) 21. Nxc6 {[%emt 0:01:26]} (21. g3 $14) 21... bxc6 $11 {[%emt 0:00:01]} 22. g3 {[%emt 0:00:33]} g6 {[%emt 0:00:53]} (22... Nxc3 $2 {ist das falsche Schlagen.} 23. Qd3 Rfc8 24. Qxc3 $18) 23. h4 {[%emt 0:02:26]} Qf6 {[%emt 0:00:37]} ({Vergiftet wäre} 23... Nxc3 $2 24. Qe1 Qf6 (24... Qa5 $2 25. Ra3 $18) 25. Qxc3 $18) 24. Qd3 {[%emt 0:01:02]} h5 {[%emt 0:00:11] Die Stellung ist ausgeglichen.} 25. Rab1 {[%emt 0:00:33]} a5 {[%emt 0:00:11][%cal Oc6c5]} 26. Rb3 {[%emt 0:01:49]} Rab8 {[%emt 0:00:39]} 27. Rdb1 {[%emt 0:01:02][%cal Bd1b1,Bb1b3,Bb3f3][%mdl 32]} Rxb3 {[%emt 0:00:41]} 28. Rxb3 {[%emt 0:01:10]} e5 {[%emt 0:00:39]} 29. Qe4 {[%emt 0:04:45]} exd4 {[%emt 0:00:08]} 30. cxd4 {[%emt 0:00:16]} Nb4 {[%emt 0:00:22]} 31. Rf3 {[%emt 0:00:19]} Qd6 {[%emt 0:00:56]} 32. Bb3 {[%emt 0:00:06][%cal Of3f7] [#] Und Rxf7! würde nun gewinnen.} Nd5 {[%emt 0:00:10]} 33. g4 {[%emt 0:00:44] gxh5 wäre nun fies.} hxg4 {[%emt 0:00:09]} 34. Qxg4 {[%emt 0:00:17]} Kg7 {[%emt 0:00:51]} 35. Qg3 {[%emt 0:06:47] Gewichteter Fehlerwert: Weiß=0.12 (sehr präzise) /Schwarz=0.07 (makellos) .  Fehler:       	Weiß=1     	Schwarz=1     Ungenau:       	Weiß=3     	Schwarz=1     OK:         	Weiß=9     	Schwarz=12} 1/2-1/2

[Event "55th Ladies GM 2024"]
[Site "Belgrade9"]
[Date "2024.03.09"]
[Round "8.3"]
[White "Maltsevskaya, Aleksandra"]
[Black "Kubicka, Anna"]
[Result "1/2-1/2"]
[ECO "B14"]
[WhiteElo "2374"]
[BlackElo "2278"]
[Annotator "TA"]
[PlyCount "24"]
[EventDate "2024.03.02"]
[EventType "tourn"]
[EventCountry "SRB"]
[SourceTitle "playchess.com"]
[Source "ChessBase"]
[SourceQuality "1"]
[TimeControl "40/5400+30:1800+30"]

{[%evp 14,24,22,6,16,0,9,-16,-6,-25,-18,-19,3]} 1. e4 {[%emt 0:20:09]} c6 {[%emt 0:00:12]} 2. d4 {[%emt 0:03:10]} d5 {[%emt 0:00:07]} 3. exd5 {[%emt 0:00:04]} cxd5 {[%emt 0:00:05]} 4. c4 {[%emt 0:00:14]} Nf6 {[%emt 0:00:14]} 5. Nc3 {[%emt 0:00:07]} g6 {[%emt 0:00:10]} 6. Bg5 {[%emt 0:08:58]} dxc4 {[%emt 0:01:05]} 7. Bxc4 {[%emt 0:00:35]} Bg7 {[%emt 0:00:17]} 8. Nf3 {[%emt 0:03:08]} O-O {[%emt 0:00:36]} 9. h3 {[%emt 0:02:08]} Nc6 {[%emt 0:08:56]} 10. a3 {[%emt 0:06:10]} Bf5 {[%emt 0:05:07]} 11. O-O {[%emt 0:10:21]} Ne4 {[%emt 0:05:12] aiming for ...Nxg5.} 12. Be3 {[%emt 0:05:45]} Rc8 {[%emt 0:03:34] A rather calm draw.   Weighted Error Value: White=0.12 (very precise) /Black=0.00 (flawless) .  OK:         	White=2     	Black=3} 1/2-1/2

[Event "55th Ladies GM 2024"]
[Site "Belgrade9"]
[Date "2024.03.09"]
[Round "8.4"]
[White "Vujovic, Vera"]
[Black "Xu, Yuanyuan"]
[Result "0-1"]
[ECO "B10"]
[WhiteElo "2175"]
[BlackElo "2288"]
[Annotator "TA"]
[PlyCount "76"]
[EventDate "2024.03.02"]
[EventType "tourn"]
[EventCountry "SRB"]
[SourceTitle "playchess.com"]
[Source "ChessBase"]
[SourceQuality "1"]
[TimeControl "40/5400+30:1800+30"]

{[%evp 9,76,12,13,0,0,-18,18,-5,-9,-9,-7,-38,-5,-20,-25,-31,-31,-31,-15,-23,-26,-26,-21,-36,-36,-33,-19,-41,-28,-20,-27,-20,0,0,0,0,0,0,0,0,0,-14,-14,-19,-10,-13,19,0,0,-112,-111,-233,-226,-225,-220,-507,-498,-2077,-1990,-2108,-2027,-29976,-29976,-29995,-29996,-29996,-29997,-29997,-29998]} 1. e4 {[%emt 0:00:04]} c6 {[%emt 0:00:06]} 2. Nf3 {[%emt 0:00:08]} d5 {[%emt 0:00:05]} 3. d3 {[%emt 0:00:03]} Qc7 {[%emt 0:00:06]} 4. Nc3 {[%emt 0:06:08]} dxe4 {[%emt 0:00:04]} 5. dxe4 {[%emt 0:00:40]} e5 {[%emt 0:00:03]} 6. Be3 {[%emt 0:10:38]} Nf6 {[%emt 0:00:42]} 7. a3 {[%emt 0:09:19]} h6 {[%emt 0:01:04]} 8. h3 {[%emt 0:01:10] The position is equal.} Be6 {[%emt 0:02:43]} 9. Bd3 {[%emt 0:03:56]} Nbd7 {[%emt 0:01:47]} 10. b4 {[%emt 0:09:58]} b5 {[%emt 0:06:54]} 11. O-O {[%emt 0:11:15]} a5 {[%emt 0:00:35]} 12. Qd2 {[%emt 0:01:46]} Be7 {[%emt 0:01:35]} (12... axb4 13. axb4 Rc8 14. Ne2 $14 (14. Ra7 Qb8 $11)) 13. Ne2 {[%emt 0:03:35]} O-O {[%emt 0:04:30]} 14. Ng3 {[%emt 0:13:15]} Rfd8 {[%emt 0:00:51]} 15. Qc3 {[%emt 0:02:40]} Ne8 {[%emt 0:09:57]} 16. Rfc1 {[%emt 0:04:01]} Nd6 {[%emt 0:02:28]} 17. Nd2 {[%emt 0:11:59]} (17. Nxe5 $2 Nxe5 18. Qxe5 Bf6 $19) 17... Nb6 {[%emt 0:03:20]} 18. Nb3 {[%emt 0:01:49]} (18. bxa5 {with more complications.} Na4 19. Qxe5 Bf6 20. Qf4) 18... axb4 {[%emt 0:11:28]} 19. axb4 {[%emt 0:00:09]} Na4 {[%emt 0:00:32]} 20. Qe1 {[%emt 0:00:32]} Nc4 {[%emt 0:00:58]} 21. Bxc4 {[%emt 0:01:57]} Bxc4 {[%emt 0:01:09]} 22. Nf5 {[%emt 0:01:12]} Bf8 {[%emt 0:08:29]} 23. Na5 {[%emt 0:02:11] Excellent horsemanship.} Be6 {[%emt 0:07:21]} 24. c4 {[%emt 0:01:22] [#] And now cxb5 would win.} Qd7 $1 $36 {[%emt 0:10:52][%mdl 2048] Black has some pressure.} 25. cxb5 {[%emt 0:01:09]} cxb5 {[%emt 0:00:02][%cal Oa4b2]} 26. Nc6 {[%emt 0:00:48]} Bxf5 {[%emt 0:00:04]} 27. exf5 {[%emt 0:01:27]} Re8 {[%emt 0:00:01][%cal Oa8a6]} 28. g4 {[%emt 0:00:44]} Ra6 {[%emt 0:01:05]} 29. Na5 {[%emt 0:00:16] [#]} (29. Qd2 $11 {was the only way to keep the balance.} Qb7 30. Na5) 29... Nb2 $1 $17 {[%emt 0:02:24]} 30. Qe2 {[%emt 0:00:40] This move loses the game for White.} (30. Qc3 $17 Nd3 31. Rd1) 30... Nd3 $19 {[%emt 0:01:45]} (30... Bxb4 31. Qxb2 Bxa5 32. Rc5 $11) 31. Rd1 {[%emt 0:00:08]} e4 {[%emt 0:00:10]} (31... Bxb4 32. Rxd3 (32. Qxd3 Qxd3 33. Rxd3 Rxa5 $11) 32... Qc7 33. Nb3 Rxa1+ 34. Nxa1 $16) 32. f3 $2 {[%emt 0:00:52]} (32. Rab1 {was worth a try.}) 32... Qc7 {[%emt 0:02:12]} 33. fxe4 {[%emt 0:00:32]} (33. f4 $142) 33... Qg3+ {[%emt 0:00:10]} ({Not} 33... Bxb4 34. Rxd3 Bxa5 (34... Rxa5 35. Rc1 $17) 35. Qf3 $17) 34. Kh1 {[%emt 0:00:29]} Qxh3+ {[%emt 0:00:03]} 35. Kg1 {[%emt 0:00:28]} Rxe4 {[%emt 0:01:54] Black mates.} 36. Qxd3 {[%emt 0:00:36]} Rxg4+ {[%emt 0:02:12]} 37. Kf2 {[%emt 0:00:06]} Rg2+ {[%emt 0:00:07]} 38. Ke1 {[%emt 0:00:04]} Qh4+ {[%emt 0:00:08] Weighted Error Value: White=0.67/Black=0.04 (flawless) .  Mistake:       	White=4     	---        Inaccurate:     	White=1     	Black=3      OK:         	White=7     	Black=11     Best:        	White=2     	Black=2      Strong:       	---       	Black=2} 0-1

[Event "55th Ladies GM 2024"]
[Site "Belgrade9"]
[Date "2024.03.09"]
[Round "8.5"]
[White "Mehmed, Elif"]
[Black "Lu, Miaoyi"]
[Result "1/2-1/2"]
[ECO "B32"]
[WhiteElo "2194"]
[BlackElo "2392"]
[Annotator "TA"]
[PlyCount "42"]
[EventDate "2024.03.02"]
[EventType "tourn"]
[EventCountry "SRB"]
[SourceTitle "playchess.com"]
[Source "ChessBase"]
[SourceQuality "1"]
[TimeControl "40/5400+30:1800+30"]

{[%evp 9,42,34,58,54,58,60,67,63,66,29,41,18,24,16,44,25,41,33,68,43,63,22,15,19,70,42,41,24,58,25,53,3,104,95,276]} 1. e4 {[%emt 0:00:04]} c5 {[%emt 0:00:01]} 2. Nf3 {[%emt 0:00:11]} Nc6 {[%emt 0:00:02]} 3. d4 {[%emt 0:00:07]} cxd4 {[%emt 0:00:03]} 4. Nxd4 {[%emt 0:00:06]} Qb6 {[%emt 0:00:04]} 5. Nb3 {[%emt 0:00:13]} g6 {[%emt 0:00:06]} 6. Be3 {[%emt 0:01:57]} Qb4+ {[%emt 0:00:04]} 7. N1d2 {[%emt 0:03:56]} Bg7 {[%emt 0:00:03]} 8. c3 {[%emt 0:00:04] White is slightly better.} Qd6 {[%emt 0:00:07]} 9. Be2 {[%emt 0:09:12]} Qc7 {[%emt 0:00:27]} 10. Nd4 {[%emt 0:03:37]} Nf6 {[%emt 0:02:25]} 11. Nb5 {[%emt 0:03:06][%cal Bd4b5,Bb5c3,Bc3d5,Bd5e7][%mdl 32]} Qb8 {[%emt 0:15:22]} 12. c4 {[%emt 0:00:51]} O-O {[%emt 0:00:21]} 13. O-O {[%emt 0:00:31]} Ne8 {[%emt 0:11:32]} 14. Nc3 {[%emt 0:04:11]} Nd4 {[%emt 0:02:09]} 15. Nb3 {[%emt 0:03:39]} Nxe2+ {[%emt 0:00:58]} 16. Qxe2 {[%emt 0:00:07]} b6 {[%emt 0:02:29]} (16... Bxc3 $11 17. bxc3 b6) 17. Nd5 {[%emt 0:03:23]} e6 {[%emt 0:01:31]} 18. Bf4 {[%emt 0:08:08]} Qb7 {[%emt 0:14:59] Black is weak on the dark squares} 19. Ne7+ {[%emt 0:01:20]} Kh8 {[%emt 0:00:02]} 20. Rfd1 {[%emt 0:02:32]} (20. e5 $14) 20... Qa6 {[%emt 0:00:01]} (20... d6 $11 21. Nxc8 (21. Bxd6 $2 {is the wrong capture.} Nxd6 22. Nxg6+ hxg6 $19) 21... Rxc8) 21. e5 $16 {[%emt 0:08:37] White has more active pieces. The black rooks are passive.} Qa4 $2 {[%emt 0:04:03][%mdl 32768] Weighted Error Value: White=0.16 (very precise) /Black=0.25 (precise) .  Loses game:     	---       	Black=1      Mistake:       	White=1     	Black=2      Inaccurate:     	White=3     	Black=4      OK:         	White=3     	Black=4      Best:        	White=2     	---       . An unexpected result.} (21... f6 $16) 1/2-1/2